bitfinex/quotes_ETHUSD_20240711
["timestamp","ask_amount","ask_price","bid_price","bid_amount"]
[1720709892235,0.65935455,3161.3,3161.2,3.16335]
[1720709892396,0.65935455,3161.3,3161.0,3.16355]
[1720709892595,0.65935455,3161.3,3161.1,3.16343]
[1720709893032,0.98826942,3161.4,3161.1,3.16343]
[1720709893033,0.65935455,3161.2,3161.1,3.16343]
[1720709893409,1.75464038,3161.2,3161.1,3.16343]
[1720709893592,1.75464038,3161.2,3161.1,3.796125]
[1720709893936,1.75463466,3161.2,3161.1,3.796125]
[1720709894900,1.75463466,3161.2,3161.1,3.16343]
[1720709895524,0.65935455,3161.4,3161.3,3.16325]
[1720709895839,1.64874607,3161.8,3161.3,3.16325]
[1720709895840,0.65935455,3161.8,3161.7,3.16285]
[1720709896037,1.31769257,3162.1,3161.7,3.79544]
[1720709896038,0.65935455,3162.0,3161.7,3.79544]
[1720709896330,0.65935455,3162.0,3161.9,3.16265]
[1720709896530,0.65935455,3162.0,3161.8,3.16274]
[1720709896531,0.98957882,3162.1,3162.0,3.1625]
[1720709896732,0.65959478,3162.1,3162.0,3.1625]
[1720709897540,2.08460327,3162.1,3161.8,3.16268]
[1720709897710,0.65971097,3161.9,3161.8,3.16268]
[1720709897905,0.65971097,3162.0,3161.9,3.16265]
[1720709898143,0.65976657,3162.0,3161.9,3.16265]
[1720709898499,0.98957882,3162.1,3162.0,3.16255]
[1720709898735,0.98957882,3162.1,3161.3,2.4594]
[1720709898736,2.3155304,3162.1,3161.3,2.4594]
[1720709899036,0.65973996,3161.9,3161.7,3.16278]
[1720709899517,0.65973996,3161.9,3161.8,3.16275]
[1720709899911,0.65973996,3161.9,3161.8,6.3255]
[1720709900111,0.98957882,3162.1,3162.0,3.16255]
[1720709900112,0.65973996,3162.1,3162.0,3.16255]
[1720709900311,0.98957882,3162.2,3161.9,3.16259]
[1720709900648,0.98957882,3162.2,3161.6,3.1629]
[1720709900799,0.660046,3162.1,3161.8,3.1627]
[1720709901130,0.660046,3162.1,3162.0,3.16255]
[1720709901828,0.660046,3162.2,3162.0,3.16255]
[1720709902066,0.98957882,3162.3,3162.1,3.16245]
[1720709902208,0.98957882,3162.3,3161.9,3.16257]
[1720709902412,0.65960828,3162.0,3161.9,3.16257]
[1720709902629,0.65960828,3162.0,3161.9,6.32522]
[1720709902843,0.65960828,3162.1,3162.0,6.3251]
[1720709903042,1.97970098,3162.8,3162.0,6.3251]
[1720709903043,3.16165,3162.9,3162.1,3.16241]
[1720709903250,0.98934749,3162.3,3162.1,3.16241]
[1720709903545,3.16165,3162.9,3162.1,3.16241]
[1720709903753,0.989388,3162.4,3162.3,3.16225]
[1720709903956,1.978776,3163.0,3162.3,3.16225]
[1720709903957,0.65969127,3163.0,3162.9,3.16165]
[1720709904311,0.65969127,3163.2,3163.0,3.16155]
[1720709904753,0.65969127,3163.2,3163.0,6.3231]
[1720709904959,0.65969127,3163.2,3163.0,6.32303]
[1720709905445,0.989388,3163.4,3163.1,3.16144]
[1720709905446,0.65969127,3163.4,3163.1,3.16144]
[1720709905767,0.65969127,3163.4,3163.1,0.04197025]
[1720709905768,0.65969127,3163.3,3163.1,0.04197025]
[1720709906056,0.65969127,3163.3,3162.6,3.16194]
[1720709906057,2.08413288,3163.2,3162.6,3.16194]
[1720709906214,0.989388,3163.2,3162.6,3.16194]
[1720709906412,0.65932222,3163.0,3162.4,3.16209]
[1720709906614,0.65932222,3162.8,3162.4,3.16209]
[1720709906843,0.65932222,3162.9,3162.4,3.16209]
[1720709907060,0.65932222,3162.9,3162.5,3.16205]
[1720709907260,0.65932222,3162.9,3162.0,2.217]
[1720709907261,0.65932222,3163.0,3162.6,3.16187]
[1720709907474,0.65932222,3163.0,3162.6,6.32374]
[1720709907761,0.65932222,3163.1,3162.7,3.16182]
[1720709907972,0.65932222,3163.1,3162.8,3.16174]
[1720709908291,0.65932222,3163.3,3162.8,3.16174]
[1720709908566,1.07054015,3163.4,3162.8,3.16174]
[1720709908779,0.65932222,3163.3,3162.8,3.16174]
[1720709908964,0.65932222,3163.2,3162.8,3.16174]
[1720709909481,1.11158457,3163.3,3162.8,3.16174]
[1720709909695,0.45226235,3163.3,3162.8,3.16174]
[1720709910012,0.65932222,3163.2,3162.6,3.16186]
[1720709910152,0.65932222,3163.2,3162.4,5.37913]
[1720709910153,0.65932222,3163.2,3162.4,3.16206]
[1720709910351,0.86937901,3163.1,3162.4,3.16206]
[1720709910590,0.21005679,3163.1,3162.4,3.16206]
[1720709910910,0.86937901,3163.1,3162.4,3.16206]
[1720709911187,0.21005679,3163.1,3162.4,3.16206]
[1720709911868,0.21005679,3163.1,3162.6,3.16194]
[1720709912386,0.21005679,3163.1,3162.7,0.04205495]
[1720709912902,0.65932222,3163.3,3162.7,0.04205495]
[1720709913193,0.65932222,3163.4,3162.7,3.20381495]
[1720709913397,0.65761922,3163.4,3162.7,3.20381495]
[1720709916160,5.62416,3163.5,3162.7,3.20381495]
[1720709916361,1.21882646,3163.4,3162.7,3.20381495]
[1720709917168,1.21882646,3163.4,3162.7,6.36559495]
[1720709917901,0.562416,3163.4,3162.8,3.1617]
[1720709918096,0.562416,3163.4,3162.8,3.20344677]
[1720709918301,0.562416,3163.4,3163.2,0.2]
[1720709918575,0.36819265,3163.3,3163.2,0.2]
[1720709920222,3.52944265,3163.3,3163.2,0.2]
[1720709920512,7.78542118,3163.3,3163.2,0.2]
[1720709920714,11.13203688,3163.3,3163.2,0.2]
[1720709921076,11.78821093,3163.3,3163.2,0.2]
[1720709922416,10.14742118,3163.3,3163.2,0.2]
[1720709922719,11.46049212,3163.3,3163.2,0.4]
[1720709922925,10.36576359,3163.3,3163.2,0.4]
[1720709923228,11.46066866,3163.3,3163.2,0.4]
[1720709923389,11.46074069,3163.3,3163.2,0.4]
[1720709923718,10.14759836,3163.3,3163.2,0.4]
[1720709925818,10.14759896,3163.3,3163.2,0.4]
[1720709926319,10.14760077,3163.3,3163.2,0.4]
[1720709926707,10.14760077,3163.3,3163.2,0.6]
[1720709928150,11.78892582,3163.3,3163.2,0.6]
[1720709929007,3.16136,3163.2,3161.8,3.15]
[1720709929207,3.16136,3163.2,3161.4,2.217]
[1720709929208,6.2715971,3162.4,3161.4,3.16308]
[1720709929406,1.8304464,3162.3,3161.9,0.04198884]
[1720709929641,1.8304464,3162.3,3161.3,2.3608]
[1720709929642,1.83072189,3162.2,3161.3,2.3608]
[1720709929961,0.6564671,3162.0,3161.2,6.32657]
[1720709930120,1.17426016,3161.9,3161.4,0.0420948]
[1720709930319,1.09518368,3161.8,3161.3,3.16325]
[1720709930541,1.09518368,3161.8,3161.5,0.0420736]
[1720709930854,0.0790795,3161.7,3160.9,5.45345]
[1720709931048,0.07908518,3161.7,3161.6,0.04205241]
[1720709931250,4.99370216,3161.7,3160.8,3.16369]
[1720709931420,4.99370216,3161.7,3160.6,8.45886406]
[1720709931421,3.89840228,3161.7,3161.6,0.04205241]
[1720709931621,4.99373875,3161.7,3160.9,3.16362]
[1720709931826,1.09533647,3161.6,3160.8,3.16373]
[1720709932163,1.09533647,3161.6,3160.6,8.45886406]
[1720709932164,0.07908851,3161.5,3160.9,0.04220079]
[1720709932345,3.16335,3161.2,3160.9,0.04220079]
[1720709932643,3.8200371,3161.0,3160.1,3.16441]
[1720709932806,0.73557137,3160.9,3159.8,2.3807]
[1720709933010,3.16378,3160.8,3160.2,0.03849931]
[1720709933246,4.73457043,3160.8,3159.9,3.16457]
[1720709933512,0.6564671,3160.8,3160.3,0.03848003]
[1720709933743,0.6564671,3160.9,3160.0,3.20307788]
[1720709933905,0.6564671,3160.9,3160.6,3.16393]
[1720709934106,3.52832094,3161.6,3160.7,3.16379]
[1720709934107,0.65609228,3161.5,3160.7,3.16379]
[1720709934311,0.65609228,3161.5,3160.7,0.0422432]
[1720709934810,0.65609228,3161.6,3160.9,3.16364]
[1720709935052,0.65609228,3161.5,3160.9,3.16364]
[1720709935345,0.65609228,3161.5,3161.0,0.04217959]
[1720709935551,0.65609228,3161.6,3161.0,3.20565959]
[1720709935749,3.81886228,3161.8,3161.0,0.04217959]
[1720709935957,0.65612276,3161.6,3160.6,3.16386]
[1720709936271,3.16316,3161.4,3161.1,0.03832581]
[1720709936442,3.16316,3161.4,3160.6,3.16386]
[1720709936443,3.81928276,3161.4,3160.6,3.16386]
[1720709936628,3.81928276,3161.4,3160.7,0.03840291]
[1720709937180,3.81987276,3160.8,3160.7,0.03840291]
[1720709937315,3.16403,3160.6,3159.7,3.16484]
[1720709937664,2.4368,3160.2,3159.2,3.16528]
[1720709937945,2.4368,3160.2,3159.4,3.16508]
[1720709937946,0.07912177,3160.1,3159.4,3.16508]
[1720709938352,0.07912177,3160.1,3159.2,3.16528]
[1720709938512,0.07912177,3160.1,3159.1,3.16543]
[1720709938513,3.24358177,3160.1,3159.1,3.16543]
[1720709938713,3.24358177,3160.1,3159.1,3.798526]
[1720709938946,3.24358177,3160.1,3159.2,3.16535]
[1720709939134,3.82006402,3160.1,3158.6,3.15]
[1720709939415,3.16449,3160.1,3159.2,3.16534]
[1720709940034,3.16457,3160.0,3159.2,3.16534]
[1720709940348,3.16445,3160.1,3159.2,3.16534]
[1720709940559,0.98336104,3160.6,3159.4,3.16515]
[1720709940560,0.65557402,3160.6,3159.4,3.16515]
[1720709940858,0.07911402,3160.7,3159.4,3.16513]
[1720709941029,3.16424,3160.4,3159.5,3.16505]
[1720709941227,3.16424,3160.4,3159.5,3.8297324]
[1720709941553,3.24326854,3160.5,3159.5,3.8297324]
[1720709941554,3.16426,3160.3,3159.5,0.6646824]
[1720709941713,3.24326854,3160.5,3159.1,3.16544]
[1720709941714,3.16452,3160.1,3159.1,3.16544]
[1720709941913,3.16464,3160.0,3159.1,3.16544]
[1720709942139,3.16452,3160.1,3159.1,3.16544]
[1720709942354,3.16452,3160.1,3159.3,3.16523]
[1720709943218,6.32858,3160.3,3159.3,3.16523]
[1720709943468,3.797118,3160.3,3159.3,3.16523]
[1720709943669,3.16426,3160.3,3159.3,3.16523]
[1720709943835,3.16426,3160.3,3158.1,3.15]
[1720709943836,3.16483,3159.8,3158.1,3.15]
[1720709944166,3.16544,3159.2,3158.1,3.16645]
[1720709944468,3.16556,3159.0,3158.2,3.16634]
[1720709945359,0.07915246,3158.9,3158.0,3.16648]
[1720709945526,0.07915246,3158.9,3158.1,3.16644]
[1720709946222,3.24481246,3158.9,3158.0,3.16655]
[1720709946424,3.16586,3158.7,3157.8,6.33336]
[1720709946664,6.25799999,3158.7,3157.6,3.16691]
[1720709946968,6.25799999,3158.7,3157.8,3.16669]
[1720709947139,6.25799999,3158.7,3157.6,3.16691]
[1720709947140,3.16602,3158.6,3157.6,3.16691]
[1720709947342,0.07916327,3158.5,3157.6,3.16691]
[1720709948034,0.07916327,3158.5,3157.1,3.16742]
[1720709948235,0.38837762,3158.5,3157.1,3.16742]
[1720709948437,0.38837762,3158.5,3157.2,0.04236264]
[1720709948865,0.38837762,3158.5,3157.2,0.02935679]
[1720709949066,3.16665,3158.0,3157.2,0.02935679]
[1720709949366,3.24583927,3157.9,3157.2,0.02935679]
[1720709949540,0.64124893,3157.8,3156.9,3.16763]
[1720709949865,3.88726319,3157.8,3157.0,3.19692929]
[1720709950227,3.2460538,3157.7,3157.0,0.02939929]
[1720709950523,3.16702,3157.6,3156.6,3.16789]
[1720709950724,3.24626032,3157.5,3156.7,3.16781]
[1720709951043,3.24626032,3157.5,3156.7,3.19733211]
[1720709951231,3.88758835,3157.5,3156.7,3.19733211]
[1720709951557,3.88758835,3157.5,3156.7,0.02952211]
[1720709951936,3.16745,3157.2,3156.7,0.02952211]
[1720709952193,3.24665035,3157.2,3156.3,3.1682]
[1720709952322,3.24665035,3157.2,3156.8,0.02950794]
[1720709952529,0.32466504,3157.2,3156.4,3.16814]
[1720709952762,0.32466504,3157.2,3156.5,0.02955045]
[1720709953457,0.64132803,3157.5,3156.6,3.16792]
[1720709953659,3.16706,3157.5,3156.6,3.16792]
[1720709953839,3.16706,3157.5,3156.7,0.02952211]
[1720709954041,3.1669,3157.7,3156.7,0.02952211]
[1720709954236,3.04274893,3157.8,3156.8,3.16768]
[1720709954468,3.04274893,3157.8,3156.7,0.02952211]
[1720709954469,3.16697,3157.6,3156.7,3.19737211]
[1720709954769,3.78794189,3157.6,3156.7,3.19737211]
[1720709956548,3.78794189,3157.6,3156.7,6.36515211]
[1720709956874,3.78794189,3157.6,3156.8,3.16775]
[1720709957039,5.56835,3157.8,3156.9,3.16765]
[1720709957246,2.4015,3157.8,3157.0,3.16755]
[1720709957762,2.4015,3157.8,3157.1,0.02958706]
[1720709958072,5.56826,3157.8,3157.1,0.02958706]
[1720709958235,6.441749,3157.8,3157.1,0.02958706]
[1720709958432,3.16641,3158.2,3157.1,3.19696706]
[1720709958776,2.3495,3158.3,3157.4,3.16715]
[1720709958935,2.3495,3158.7,3157.6,3.16695]
[1720709959281,2.3495,3158.7,3157.7,0.02974296]
[1720709959282,3.16601,3158.6,3157.7,0.02974296]
[1720709959445,3.16632,3158.3,3157.7,0.02974296]
[1720709959776,3.16652,3158.1,3157.3,3.16726]
[1720709960236,0.0791768,3158.1,3157.4,0.02970513]
[1720709960434,3.16676,3157.8,3157.4,0.02970513]
[1720709960744,3.16676,3157.8,3157.0,3.16753]
[1720709961280,3.16676,3157.8,3157.1,0.02966732]
[1720709961594,4.033721,3157.8,3157.1,0.02966732]
[1720709962076,0.07918358,3157.7,3157.1,0.02966732]
[1720709962569,3.16719,3157.4,3157.1,0.02966732]
[1720709962878,3.16719,3157.4,3156.5,13.62595]
[1720709963081,3.16719,3157.4,3157.2,0.02966921]
[1720709963082,0.07919385,3157.3,3157.2,0.02966921]
[1720709963290,0.07919385,3157.3,3156.5,10.45797]
[1720709963492,0.07919387,3157.3,3157.2,0.02966921]
[1720709963783,3.16727,3157.3,3156.5,6.33596]
[1720709963952,3.16727,3157.3,3156.5,3.16797]
[1720709964148,3.800716,3157.3,3156.6,0.02975424]
[1720709964463,3.16743,3157.2,3156.6,0.02975424]
[1720709964834,3.16743,3157.2,3156.3,3.16821]
[1720709965042,3.16743,3157.2,3156.7,0.02974006]
[1720709965235,3.16755,3157.1,3156.2,7.29]
[1720709965434,0.633498,3157.0,3156.8,0.02972589]
[1720709965676,3.801078,3157.0,3156.2,10.45836]
[1720709965978,3.801078,3157.0,3156.3,3.16826]
[1720709965979,0.633498,3157.0,3156.3,3.16826]
[1720709966179,3.16719,3157.4,3156.5,3.16804]
[1720709966350,3.16744,3157.2,3156.4,0.02978258]
[1720709966558,3.16744,3157.2,3156.5,0.02976841]
[1720709966780,3.16732,3157.3,3156.5,0.02976841]
[1720709967085,6.33466,3157.3,3156.5,3.16806]
[1720709967245,0.633466,3157.2,3156.6,0.02975424]
[1720709967750,3.16758,3157.0,3156.7,0.02993744]
[1720709967947,3.16758,3157.0,3156.2,7.29]
[1720709968153,3.16758,3157.0,3156.3,0.02998725]
[1720709969554,6.33605,3156.6,3156.3,0.02998725]
[1720709969876,0.633605,3156.6,3155.9,3.16861]
[1720709970177,6.33582,3156.7,3155.9,3.16861]
[1720709970379,3.16787,3156.7,3155.9,6.3372]
[1720709970566,3.16787,3156.7,3156.0,0.02930954]
[1720709970888,8.82037,3156.9,3156.0,0.02930954]
[1720709971176,3.16778,3156.8,3156.0,0.02930954]
[1720709971378,4.04982,3156.8,3156.0,3.19785954]
[1720709971583,3.16788,3156.7,3156.0,3.19785954]
[1720709974466,1.0970928,3156.6,3156.0,3.19785954]
[1720709974684,3.16788,3156.7,3156.0,0.02930954]
[1720709974845,1.09709112,3156.6,3156.0,0.02930954]
[1720709975042,0.51470111,3156.6,3155.9,3.16864]
[1720709975385,0.51470111,3156.6,3156.0,0.02930954]
[1720709975592,1.09708905,3156.5,3156.0,0.02930954]
[1720709975753,0.51470111,3156.6,3155.8,3.16876]
[1720709975953,1.09709999,3156.5,3155.9,0.02932372]
[1720709976174,0.51470111,3156.6,3155.9,0.02932372]
[1720709976483,1.09707909,3156.5,3155.9,0.02932372]
[1720709976686,1.09707909,3156.4,3155.9,0.02932372]
[1720709976986,1.09707909,3156.5,3155.9,0.02932372]
[1720709977163,1.09710175,3156.4,3155.9,0.02932372]
[1720709977492,3.68267111,3156.6,3155.9,0.02932372]
[1720709977662,4.9502282,3156.5,3155.9,0.02932372]
[1720709977847,1.09710309,3156.4,3155.9,0.02932372]
[1720709978052,3.85312511,3156.5,3155.7,3.1688]
[1720709978378,1.09709602,3156.4,3155.7,3.1688]
[1720709978584,3.85312511,3156.5,3155.7,3.1688]
[1720709978879,1.09709679,3156.4,3155.8,0.0293379]
[1720709979177,0.51470111,3156.6,3155.8,0.0293379]
[1720709979178,3.68268111,3156.6,3155.8,0.0293379]
[1720709979387,1.09709333,3156.5,3155.8,0.0293379]
[1720709979590,1.09709333,3156.4,3155.8,0.0293379]
[1720709979789,1.09709333,3156.4,3155.8,3.1980879]
[1720709979958,3.1678,3156.8,3155.9,3.16864]
[1720709980163,1.09709333,3156.7,3156.0,3.19786857]
[1720709980374,1.09709333,3156.6,3156.0,3.19786857]
[1720709980689,3.16783,3156.8,3156.0,3.19786857]
[1720709980860,1.09707917,3156.5,3156.0,3.19786857]
[1720709981060,1.09707917,3156.4,3156.0,3.19786857]
[1720709981263,3.16789,3156.7,3156.0,0.02934857]
[1720709981475,1.09707981,3156.6,3156.0,0.02934857]
[1720709981787,1.09707981,3156.6,3155.6,6.33781]
[1720709981788,4.26523981,3156.5,3155.6,6.33781]
[1720709981950,1.09707981,3156.4,3155.6,3.1689]
[1720709982348,1.09707981,3156.4,3155.7,0.02942555]
[1720709982547,4.34448506,3156.4,3155.7,0.02942555]
[1720709982764,4.69978832,3156.3,3155.7,0.02942555]
[1720709982995,4.69978832,3156.3,3155.5,10.45903]
[1720709982996,1.09707981,3156.2,3155.8,0.02942514]
[1720709983197,1.17629607,3156.2,3155.8,0.02942514]
[1720709983359,1.09712796,3156.1,3155.9,0.02941096]
[1720709983690,1.09719666,3156.0,3155.5,7.29]
[1720709983887,3.16837,3156.2,3155.5,10.45906]
[1720709984077,1.09726245,3156.1,3155.5,10.45906]
[1720709984279,1.09726245,3156.0,3155.5,10.45906]
[1720709984496,1.09726245,3156.1,3155.5,10.45906]
[1720709985392,1.09726245,3156.1,3155.5,7.29]
[1720709987266,3.16837,3156.2,3155.5,8.888551]
[1720709987890,1.09723166,3156.1,3155.5,1.598551]
[1720709988090,3.16837,3156.2,3155.4,3.16914]
[1720709988299,1.09726458,3156.0,3155.4,3.16914]
[1720709988601,3.16837,3156.2,3155.4,3.16914]
[1720709988774,1.09726697,3156.1,3155.4,3.16914]
[1720709988971,1.09726697,3156.0,3155.4,3.16914]
[1720709989304,6.33681,3156.2,3155.4,3.16914]
[1720709989489,1.09726184,3156.1,3155.4,3.16914]
[1720709989722,1.09726184,3156.0,3155.4,3.16914]
[1720709990000,3.80997283,3156.2,3155.4,3.16914]
[1720709990208,4.26567178,3156.1,3155.3,5.52637]
[1720709990497,4.26567178,3156.1,3155.3,8.69558]
[1720709990498,3.16848,3156.1,3155.3,8.69558]
[1720709990810,3.16815,3156.5,3155.6,3.16896]
[1720709990964,1.09713613,3156.4,3155.7,0.316896]
[1720709991157,1.09709475,3156.3,3155.7,0.316896]
[1720709991392,3.16853,3156.1,3155.3,2.3572]
[1720709991691,1.09709475,3156.0,3155.6,3.16887]
[1720709991896,1.09709475,3156.5,3155.7,3.16884]
[1720709992065,3.82457663,3156.7,3155.7,3.16884]
[1720709992066,1.09713196,3156.6,3155.7,3.16884]
[1720709992268,3.16792,3156.7,3155.8,3.16875]
[1720709992269,1.09713196,3156.5,3155.8,3.16875]
[1720709992597,1.09713196,3156.4,3155.8,3.86279115]
[1720709992890,1.09713196,3156.3,3155.9,3.16865]
[1720709993058,3.16791,3156.7,3155.9,3.16865]
[1720709993258,1.09711772,3156.6,3155.9,3.16865]
[1720709993508,4.26522772,3156.5,3155.6,5.3929]
[1720709993663,0.49218844,3156.4,3155.6,6.33779]
[1720709994001,1.09717454,3156.3,3155.6,3.16896]
[1720709994169,0.49218844,3156.4,3155.6,3.16896]
[1720709994357,1.14937007,3156.4,3155.6,3.16896]
[1720709994554,1.09719762,3156.3,3155.6,3.16896]
[1720709994794,1.09719762,3156.2,3155.6,3.16896]
[1720709994961,1.09719762,3156.2,3155.4,3.1691]
[1720709994962,1.09719762,3156.1,3155.4,3.1691]
[1720709995165,1.09719762,3156.0,3155.4,3.1691]
[1720709995364,1.09719762,3156.1,3155.4,3.1691]
[1720709995558,1.09719762,3156.1,3155.4,6.33818]
[1720709995762,1.09719762,3156.1,3155.5,0.02927012]
[1720709996519,1.75437925,3156.1,3155.5,3.19833012]
[1720709996817,1.09719762,3156.0,3155.5,3.19833012]
[1720709997512,1.09725588,3155.9,3155.7,3.16879]
[1720709997712,0.65718163,3156.4,3155.7,3.16879]
[1720709997887,0.65718163,3156.4,3155.8,6.36663757]
[1720709997888,1.09712807,3156.3,3155.8,6.36663757]
[1720709998089,1.09712807,3156.2,3155.8,3.19790757]
[1720709998308,1.09712807,3156.3,3155.8,0.02922757]
[1720709998627,1.7543097,3156.2,3155.6,6.33786]
[1720709998779,1.7543097,3156.1,3155.7,3.16885]
[1720709998978,1.7543097,3156.1,3155.8,0.02922757]
[1720709998979,1.09712807,3156.0,3155.8,0.02922757]
[1720709999179,1.09712807,3156.0,3155.7,3.16885]
[1720709999493,1.09712807,3156.0,3155.8,0.02922757]
[1720710000019,1.09712807,3156.0,3155.7,3.16885]
[1720710000020,1.09712807,3155.9,3155.7,3.16885]
[1720710000230,1.09712807,3156.1,3155.8,3.16876]
[1720710000401,1.09712807,3156.2,3156.0,5.52437]
[1720710000609,4.15406703,3156.6,3155.6,7.74878]
[1720710000825,4.15406703,3156.6,3155.3,3.16917]
[1720710000826,3.16826,3156.3,3155.3,3.16917]
[1720710001120,1.09713045,3156.2,3155.8,3.16871]
[1720710001292,5.46142,3156.7,3155.4,7.429137]
[1720710001293,1.09713045,3156.1,3155.4,7.429137]
[1720710001494,0.65757544,3156.4,3155.5,3.16906]
[1720710001495,1.09713045,3156.0,3155.5,3.16906]
[1720710001718,5.00230994,3156.2,3155.2,10.9092]
[1720710001878,1.09713045,3156.1,3155.2,7.7399]
[1720710002074,1.09713045,3156.1,3155.6,3.16887]
[1720710002278,1.09713045,3156.2,3155.4,3.16908]
[1720710002525,1.09713045,3156.1,3155.3,1.50299]
[1720710002682,1.09713045,3156.0,3155.5,6.33805]
[1720710002878,0.65757544,3156.2,3155.6,3.16891]
[1720710003119,1.09710929,3156.1,3155.6,3.8027]
[1720710003309,1.09710929,3156.0,3155.5,3.16899]
[1720710003535,1.09710929,3155.9,3155.5,3.16899]
[1720710003693,0.65757544,3156.1,3155.3,4.67222]
[1720710004022,0.65757544,3156.1,3155.3,7.84143]
[1720710004023,0.65757544,3155.9,3155.3,7.84143]
[1720710004322,1.09717938,3155.8,3155.4,3.16909]
[1720710004520,1.09717938,3155.8,3155.5,3.16906]
[1720710004826,0.98636316,3156.0,3155.5,3.16906]
[1720710004827,0.65757544,3156.0,3155.5,3.16906]
[1720710005121,1.09716527,3155.9,3155.5,3.16906]
[1720710005319,0.65757544,3156.2,3155.5,3.16906]
[1720710005481,1.75466705,3156.1,3155.7,3.1688]
[1720710005678,0.65757544,3156.2,3155.7,6.33759]
[1720710005882,3.82624544,3155.9,3154.8,2.2947]
[1720710006078,0.65807758,3155.6,3154.9,3.16965]
[1720710006386,0.65807758,3155.6,3154.8,2.2947]
[1720710006387,0.65807758,3155.4,3154.8,2.2947]
[1720710006586,1.75544844,3155.3,3154.8,2.2947]
[1720710006922,0.65807758,3155.3,3154.8,2.2947]
[1720710007108,0.65807758,3155.3,3154.9,3.1696]
[1720710007344,0.65807758,3155.4,3155.1,10.45944]
[1720710007548,0.65807758,3155.5,3155.4,3.16917]
[1720710007720,0.65807758,3155.7,3155.4,3.16917]
[1720710008265,0.65807758,3155.7,3155.2,5.39329]
[1720710008415,0.65807758,3155.6,3155.5,3.16906]
[1720710008757,1.64509931,3156.0,3155.5,3.16906]
[1720710008758,0.65807758,3155.8,3155.7,3.16886]
[1720710008957,0.98636316,3156.0,3155.8,3.16876]
[1720710008958,0.65807758,3155.9,3155.8,3.16876]
[1720710009258,0.98636316,3156.0,3155.8,3.16876]
[1720710009259,0.65807758,3156.0,3155.8,3.16876]
[1720710009448,1.31515088,3156.3,3155.8,3.16876]
[1720710009449,0.65807758,3156.1,3156.0,3.16856]
[1720710009627,0.65807758,3156.1,3155.8,3.16868]
[1720710009811,0.65807758,3156.1,3155.8,4.024842]
[1720710010010,0.65807758,3156.2,3155.8,4.024842]
[1720710010216,0.65807758,3156.1,3156.0,3.16856]
[1720710010629,1.09707512,3156.1,3155.8,4.024842]
[1720710010830,0.65828358,3156.0,3155.9,3.16865]
[1720710011927,0.98636316,3156.2,3155.6,2.224]
[1720710011928,0.65828358,3156.2,3156.1,3.16846]
[1720710012127,0.65828358,3156.3,3156.2,3.16836]
[1720710012336,0.98636316,3156.4,3156.1,3.16841]
[1720710012537,0.98636316,3156.3,3156.0,3.16856]
[1720710012752,2.08346124,3156.2,3155.8,3.16876]
[1720710013067,0.65818455,3156.0,3155.9,3.485536]
[1720710013266,0.65818455,3156.1,3155.9,3.485536]
[1720710013477,0.65818455,3156.0,3155.9,3.16866]
[1720710013833,0.65818455,3156.2,3155.9,3.16866]
[1720710014550,0.65818455,3156.1,3156.0,3.16853]
[1720710014725,0.65818455,3156.2,3156.1,3.16846]
[1720710015372,0.65818455,3156.2,3156.0,3.16855]
[1720710015373,0.65818455,3156.3,3156.2,3.16836]
[1720710015584,0.65818455,3156.3,3156.2,3.802051]
[1720710015798,0.65818455,3156.3,3156.2,6.196851]
[1720710015957,0.65818455,3156.5,3156.3,3.16826]
[1720710016159,1.31515088,3156.8,3156.5,3.16806]
[1720710016160,0.65818455,3156.6,3156.5,3.16806]
[1720710016389,0.65818455,3156.7,3156.6,6.33592]
[1720710016682,1.6468237,3157.2,3157.1,3.16746]
[1720710016683,0.65818455,3157.2,3157.1,3.16746]
[1720710016893,1.6468237,3157.6,3157.4,3.16716]
[1720710016894,0.65818455,3157.6,3157.4,3.16716]
[1720710017041,1.31515088,3157.9,3157.4,3.16716]
[1720710017042,0.65818455,3157.9,3157.6,3.16689]
[1720710017237,3.1804556,3158.0,3157.6,3.16689]
[1720710017238,2.85227699,3158.0,3157.7,3.16677]
[1720710017439,2.19409244,3158.0,3157.8,3.16675]
[1720710017644,0.65818455,3158.2,3157.8,3.16675]
[1720710017943,0.98636316,3158.3,3157.8,3.16675]
[1720710017944,0.65818455,3158.1,3157.9,0.03284303]
[1720710018448,0.82263932,3158.1,3157.4,3.16708]
[1720710018754,0.82263932,3158.1,3157.5,3.16697]
[1720710019082,0.82128336,3158.1,3157.5,3.16697]
[1720710019387,0.82128336,3158.1,3157.6,3.16695]
[1720710019388,0.16445477,3158.1,3157.6,3.16695]
[1720710019696,0.65682859,3158.2,3157.6,3.16695]
[1720710020041,0.65682859,3158.3,3158.0,3.1665]
[1720710020241,0.65682859,3158.5,3158.1,3.16646]
[1720710020454,1.31365718,3158.8,3158.1,3.16646]
[1720710020455,0.65682859,3158.7,3158.1,3.16646]
[1720710021049,0.65682859,3158.7,3158.2,3.16635]
[1720710021295,3.96867148,3159.1,3158.3,3.16617]
[1720710021296,0.65682859,3158.9,3158.3,3.16617]
[1720710021589,0.65682859,3158.9,3158.2,3.16635]
[1720710021590,2.3266,3159.1,3158.2,6.33262]
[1720710021741,0.61487986,3159.0,3158.2,6.33262]
[1720710021945,0.61487986,3159.0,3158.3,3.16623]
[1720710022591,0.61487986,3159.0,3158.4,3.2084099]
[1720710022813,2.3266,3159.1,3158.4,3.2084099]
[1720710022958,3.82206859,3159.4,3158.4,3.2084099]
[1720710023291,3.82206859,3159.4,3158.5,3.16603]
[1720710023292,0.65682859,3159.3,3158.5,3.16603]
[1720710023497,2.3981,3159.5,3158.5,3.16603]
[1720710023498,6.22005859,3159.5,3158.5,3.16603]
[1720710023703,3.16516,3159.4,3158.6,0.05919473]
[1720710023853,0.93852186,3159.3,3158.6,0.05919473]
[1720710024352,0.93852186,3159.3,3158.4,3.16613]
[1720710024555,0.93852186,3159.3,3158.5,0.05922507]
[1720710024978,0.93852186,3159.3,3158.5,3.22524507]
[1720710025358,0.93852186,3159.3,3158.5,0.05922507]
[1720710025702,0.41037019,3159.2,3158.5,0.05922507]
[1720710026582,0.07914,3159.1,3158.5,0.05922507]
[1720710026781,4.10383186,3159.3,3158.2,3.16627]
[1720710027013,4.10383186,3159.3,3158.3,0.05928574]
[1720710027296,4.10383186,3159.3,3158.4,3.1661]
[1720710027510,4.10383186,3159.3,3158.3,0.05928574]